fUST/lending_fUST_20250214
["ID","MTS","AMOUNT","RATE_DAILY","PERIOD"]
[353074370,1739543442846,-500.0,0.0001378,2]
[353074371,1739543442856,-1357.74,0.0001378,2]
[353074372,1739543442865,-500.0,0.0001378,2]
[353074373,1739543442875,-500.0,0.0001378,2]
[353074374,1739543442884,-500.0,0.0001378,2]
[353074376,1739543442894,-500.0,0.0001378,2]
[353074377,1739543442904,-500.0,0.0001378,2]
[353074379,1739543442919,-500.0,0.0001378,2]
[353074381,1739543442929,-512.5487656,0.0001378,2]
[353074382,1739543442938,-500.0,0.0001378,2]
[353074383,1739543442947,-500.0,0.0001378,2]
[353074384,1739543442956,-3266.46,0.0001378,2]
[353074385,1739543442965,-615.53,0.0001378,2]
[353074386,1739543442975,-932.38,0.0001378,2]
[353074387,1739543442986,-500.0,0.0001378,2]
[353074388,1739543442996,-500.0,0.0001378,2]
[353074389,1739543443005,-500.0,0.0001378,2]
[353074391,1739543443018,-500.0,0.0001378,2]
[353074393,1739543443028,-1818.71,0.0001378,2]
[353074394,1739543443037,-500.0,0.0001378,2]
[353074396,1739543443047,-3629.11,0.0001378,2]
[353074398,1739543443055,-1427.44,0.0001378,2]
[353074400,1739543443065,-517.97320949,0.0001378,2]
[353074402,1739543443074,-8073.84,0.0001378,2]
[353074404,1739543443085,-907.96,0.0001378,2]
[353074406,1739543443094,-1744.01,0.0001378,2]
[353074408,1739543443104,-529.59,0.0001378,2]
[353074410,1739543443114,-500.0,0.0001378,2]
[353074413,1739543443124,-3935.74,0.0001378,2]
[353074415,1739543443134,-3028.47,0.0001378,2]
[353074416,1739543443143,-500.0,0.0001378,2]
[353074417,1739543443153,-13546.8,0.0001378,2]
[353074418,1739543443163,-500.0,0.0001378,2]
[353074419,1739543443172,-406.85361087,0.0001378,2]
[353074420,1739543443182,-3573.63,0.0001378,2]
[353074421,1739543443191,-1282.31,0.0001378,2]
[353074422,1739543443201,-592.51,0.0001378,2]
[353074423,1739543443211,-153.579955,0.00013797,5]
[353074425,1739543443220,-296.10644691,0.00013799,2]
[353074426,1739543443230,-500.0,0.00013799,2]
[353074428,1739543443239,-216.40206007,0.00013799,2]
[353074430,1739543443248,-500.0,0.00013799,2]
[353074431,1739543443258,-500.0,0.00013799,2]
[353074433,1739543443271,-500.0,0.00013799,2]
[353074434,1739543443280,-151.0,0.000138,2]
[353074435,1739543443290,-151.0,0.000138,2]
[353074436,1739543443299,-151.0,0.000138,2]
[353074437,1739543443308,-151.0,0.000138,2]
[353074438,1739543443319,-151.0,0.000138,2]
[353074439,1739543443328,-476013.75736288,0.000138,2]
[353074441,1739543443338,-5968.62179446,0.00013845,2]
[353074443,1739543443348,-352.60981868,0.00013859,2]
[353074444,1739543443357,-160.0,0.00013862,2]
[353074446,1739543443366,-683.62,0.00013862,2]
[353074448,1739543443375,-683.62,0.00013862,2]
[353074449,1739543443384,-683.62,0.00013862,2]
[353074451,1739543443394,-683.62,0.00013862,2]
[353074453,1739543443403,-683.79,0.00013862,2]
[353074455,1739543443413,-500.0,0.00013863,2]
[353074456,1739543443422,-500.0,0.00013863,2]
[353074457,1739543443432,-500.0,0.00013863,2]
[353074458,1739543443441,-500.0,0.00013863,2]
[353074459,1739543443451,-740.19,0.00013863,2]
[353074460,1739543443460,-500.0,0.00013863,2]
[353074461,1739543443470,-690.32,0.00013863,2]
[353074463,1739543443479,-621.95,0.00013863,2]
[353074465,1739543443489,-500.0,0.00013863,2]
[353074467,1739543443499,-500.0,0.00013863,2]
[353074469,1739543443508,-280.70698117,0.00013863,2]
[353074470,1739543443521,-863.05,0.00013863,2]
[353074472,1739543443530,-1041.31,0.00013863,2]
[353074473,1739543443540,-500.0,0.00013863,2]
[353074474,1739543443550,-500.0,0.00013863,2]
[353074475,1739543443559,-625.51123241,0.00013863,2]
[353074476,1739543443569,-503.88815816,0.00013863,2]
[353074477,1739543443677,-500.0,0.00013863,2]
[353074479,1739543443687,-500.0,0.00013863,2]
[353074481,1739543443697,-614.0,0.00013863,2]
[353074483,1739543443709,-500.0,0.00013863,2]
[353074485,1739543443719,-1586.12,0.00013863,2]
[353074487,1739543443728,-500.0,0.00013863,2]
[353074489,1739543443738,-1723.46,0.00013863,2]
[353074491,1739543443748,-500.0,0.00013863,2]
[353074493,1739543443757,-500.0,0.00013863,2]
[353074495,1739543443771,-868.79,0.00013863,2]
[353074497,1739543443781,-500.0,0.00013863,2]
[353074499,1739543443793,-500.0,0.00013863,2]
[353074501,1739543443803,-1433.64,0.00013863,2]
[353074503,1739543443812,-500.0,0.00013863,2]
[353074505,1739543443822,-526.74,0.00013863,2]
[353074507,1739543443831,-500.0,0.00013863,2]
[353074509,1739543443841,-500.0,0.00013863,2]
[353074511,1739543443850,-500.0,0.00013863,2]
[353074513,1739543443860,-500.0,0.00013863,2]
[353074515,1739543443869,-1615.06,0.00013863,2]
[353074517,1739543443879,-615.46,0.00013863,2]
[353074519,1739543443888,-500.0,0.00013863,2]
[353074521,1739543443897,-500.0,0.00013863,2]
[353074523,1739543443906,-500.0,0.00013863,2]
[353074525,1739543443915,-500.0,0.00013863,2]
[353074527,1739543443924,-500.0,0.00013863,2]
[353074529,1739543443933,-500.0,0.00013863,2]
[353074531,1739543443942,-1337.15,0.00013863,2]
[353074533,1739543443951,-500.0,0.00013863,2]
[353074534,1739543443961,-500.0,0.00013863,2]
[353074536,1739543443970,-500.0,0.00013863,2]
[353074538,1739543443979,-500.0,0.00013863,2]
[353074539,1739543443988,-500.0,0.00013863,2]
[353074540,1739543443998,-500.0,0.00013863,2]
[353074541,1739543444008,-758.43,0.00013863,2]
[353074542,1739543444018,-3967.03,0.00013863,2]
[353074543,1739543444027,-2221.02,0.00013863,2]
[353074544,1739543444036,-7925.89,0.00013863,2]
[353074545,1739543444045,-500.0,0.00013863,2]
[353074546,1739543444055,-500.0,0.00013863,2]
[353074547,1739543444063,-500.0,0.00013863,2]
[353074548,1739543444073,-718.91,0.00013863,2]
[353074549,1739543444083,-1211.07,0.00013863,2]
[353074550,1739543444093,-500.0,0.00013863,2]
[353074551,1739543444102,-741.49,0.00013863,2]
[353074552,1739543444112,-500.0,0.00013863,2]
[353074553,1739543444121,-5210.48,0.00013863,2]
[353074554,1739543444130,-672.75,0.00013863,2]
[353074555,1739543444140,-500.0,0.00013863,2]
[353074556,1739543444149,-18062.97,0.00013863,2]
[353074557,1739543444158,-1719.82,0.00013863,2]
[353074558,1739543444168,-3867.58,0.00013863,2]
[353074559,1739543444177,-500.0,0.00013863,2]
[353074560,1739543444186,-1273.6,0.00013863,2]
[353074561,1739543444195,-506.87092836,0.00013863,2]
[353074562,1739543444205,-2073.55,0.00013863,2]
[353074563,1739543444214,-2121.62,0.00013863,2]
[353074564,1739543444224,-500.0,0.00013863,2]
[353074565,1739543444233,-1761.8,0.00013863,2]
[353074566,1739543444243,-722.6,0.00013863,2]
[353074567,1739543444253,-500.0,0.00013863,2]
[353074568,1739543444264,-500.0,0.00013863,2]
[353074569,1739543444273,-500.0,0.00013863,2]
[353074570,1739543444282,-500.0,0.00013863,2]
[353074571,1739543444291,-556.94342698,0.00013863,2]
[353074572,1739543444301,-41321.88,0.00013863,2]
[353074573,1739543444310,-512.23,0.00013863,2]
[353074574,1739543444320,-500.0,0.00013863,2]
[353074575,1739543444330,-1418.28,0.00013863,2]
[353074576,1739543444339,-2485.63,0.00013863,2]
[353074577,1739543444349,-2170.49,0.00013863,2]
[353074578,1739543444358,-1522.54,0.00013863,2]
[353074579,1739543444368,-512.37,0.00013863,2]
[353074580,1739543444377,-258.14563886,0.00013863,2]
[353074581,1739543444387,-500.0,0.00013863,2]
[353074582,1739543444397,-500.0,0.00013863,2]
[353074583,1739543444407,-1357.74,0.00013863,2]
[353074584,1739543444417,-500.0,0.00013863,2]
[353074585,1739543444428,-500.0,0.00013863,2]
[353074586,1739543444440,-500.0,0.00013863,2]
[353074587,1739543444450,-500.0,0.00013863,2]
[353074588,1739543444460,-500.0,0.00013863,2]
[353074589,1739543444471,-3266.46,0.00013863,2]
[353074590,1739543444480,-615.53,0.00013863,2]
[353074591,1739543444489,-932.38,0.00013863,2]
[353074592,1739543444499,-500.0,0.00013863,2]
[353074593,1739543444509,-500.0,0.00013863,2]
[353074594,1739543444520,-500.0,0.00013863,2]
[353074595,1739543444531,-500.0,0.00013863,2]
[353074596,1739543444541,-1818.71,0.00013863,2]
[353074597,1739543444550,-500.0,0.00013863,2]
[353074598,1739543444560,-3629.11,0.00013863,2]
[353074599,1739543444570,-1427.44,0.00013863,2]
[353074600,1739543444579,-8073.84,0.00013863,2]
[353074601,1739543444589,-907.96,0.00013863,2]
[353074602,1739543444599,-1744.01,0.00013863,2]
[353074603,1739543444608,-529.59,0.00013863,2]
[353074604,1739543444618,-500.0,0.00013863,2]
[353074605,1739543444628,-3935.74,0.00013863,2]
[353074606,1739543444638,-3028.47,0.00013863,2]
[353074607,1739543444647,-13546.8,0.00013863,2]
[353074608,1739543444656,-500.0,0.00013863,2]
[353074609,1739543444665,-3573.63,0.00013863,2]
[353074610,1739543444675,-1282.31,0.00013863,2]
[353074611,1739543444684,-592.51,0.00013863,2]
[353074612,1739543444697,-151.0,0.000139,2]
[353074613,1739543444707,-151.0,0.000139,2]
[353074614,1739543444716,-151.0,0.000139,2]
[353074615,1739543444726,-151.0,0.000139,2]
[353074616,1739543444735,-538.0,0.0001391,2]
[353074617,1739543444744,-1970.0,0.0001391,2]
[353074618,1739543444753,-2292.0,0.0001391,2]
[353074619,1739543444763,-1073.1849173,0.00013913,2]
[353074620,1739543444773,-351.0,0.00013927,2]
[353074621,1739543444782,-615.267,0.00013937,2]
[353074622,1739543444793,-160.0,0.00013944,2]
[353074623,1739543444803,-151.0,0.00013945,2]
[353074624,1739543444812,-151.0,0.00013945,2]
[353074625,1739543444822,-500.0,0.00013945,2]
[353074626,1739543444831,-500.0,0.00013945,2]
[353074627,1739543444841,-500.0,0.00013945,2]
[353074628,1739543444850,-740.19,0.00013945,2]
[353074629,1739543444859,-500.0,0.00013945,2]
[353074630,1739543444869,-690.32,0.00013945,2]
[353074631,1739543444878,-621.95,0.00013945,2]
[353074632,1739543444887,-507.42600864,0.00013945,2]
[353074633,1739543444897,-500.0,0.00013945,2]
[353074634,1739543444906,-863.05,0.00013945,2]
[353074635,1739543444916,-1041.31,0.00013945,2]
[353074636,1739543444925,-500.0,0.00013945,2]
[353074637,1739543444934,-500.0,0.00013945,2]
[353074638,1739543444944,-500.0,0.00013945,2]
[353074639,1739543444953,-614.0,0.00013945,2]
[353074640,1739543444962,-1586.12,0.00013945,2]
[353074641,1739543444972,-500.0,0.00013945,2]
[353074642,1739543444981,-1723.46,0.00013945,2]
[353074643,1739543444990,-500.0,0.00013945,2]
[353074644,1739543445000,-500.0,0.00013945,2]
[353074645,1739543445009,-868.79,0.00013945,2]
[353074646,1739543445020,-500.0,0.00013945,2]
[353074647,1739543445030,-1433.64,0.00013945,2]
[353074648,1739543445039,-500.0,0.00013945,2]
[353074649,1739543445048,-526.74,0.00013945,2]
[353074650,1739543445058,-500.0,0.00013945,2]
[353074651,1739543445068,-500.0,0.00013945,2]
[353074652,1739543445078,-1615.06,0.00013945,2]
[353074653,1739543445087,-615.46,0.00013945,2]
[353074654,1739543445096,-500.0,0.00013945,2]
[353074655,1739543445106,-500.0,0.00013945,2]
[353074656,1739543445116,-500.0,0.00013945,2]
[353074657,1739543445126,-500.0,0.00013945,2]
[353074658,1739543445135,-1337.15,0.00013945,2]
[353074659,1739543445145,-500.0,0.00013945,2]
[353074660,1739543445154,-500.0,0.00013945,2]
[353074661,1739543445163,-500.0,0.00013945,2]
[353074662,1739543445172,-500.0,0.00013945,2]
[353074663,1739543445182,-500.0,0.00013945,2]
[353074664,1739543445192,-500.0,0.00013945,2]
[353074665,1739543445201,-758.43,0.00013945,2]
[353074666,1739543445211,-3967.03,0.00013945,2]
[353074667,1739543445220,-2221.02,0.00013945,2]
[353074668,1739543445230,-7925.89,0.00013945,2]
[353074669,1739543445240,-500.0,0.00013945,2]
[353074670,1739543445250,-500.0,0.00013945,2]
[353074671,1739543445259,-718.91,0.00013945,2]
[353074672,1739543445271,-1211.07,0.00013945,2]
[353074673,1739543445281,-500.0,0.00013945,2]
[353074674,1739543445290,-741.49,0.00013945,2]
[353074675,1739543445300,-500.0,0.00013945,2]
[353074676,1739543445309,-5210.48,0.00013945,2]
[353074677,1739543445318,-672.75,0.00013945,2]
[353074678,1739543445328,-500.0,0.00013945,2]
[353074679,1739543445338,-18062.97,0.00013945,2]
[353074680,1739543445348,-1719.82,0.00013945,2]
[353074681,1739543445358,-3867.58,0.00013945,2]
[353074682,1739543445368,-1273.6,0.00013945,2]
[353074683,1739543445378,-2073.55,0.00013945,2]
[353074684,1739543445387,-2121.62,0.00013945,2]
[353074685,1739543445396,-500.0,0.00013945,2]
[353074686,1739543445406,-722.6,0.00013945,2]
[353074687,1739543445416,-1761.8,0.00013945,2]
[353074688,1739543445425,-500.0,0.00013945,2]
[353074689,1739543445434,-500.0,0.00013945,2]
[353074690,1739543445443,-500.0,0.00013945,2]
[353074691,1739543445452,-500.0,0.00013945,2]
[353074692,1739543445461,-41321.88,0.00013945,2]
[353074693,1739543445471,-512.23,0.00013945,2]
[353074694,1739543445480,-492.50985248,0.00013945,2]
[353074695,1739543445489,-1418.28,0.00013945,2]
[353074696,1739543445499,-2485.63,0.00013945,2]
[353074697,1739543445508,-2170.49,0.00013945,2]
[353074698,1739543445519,-1522.54,0.00013945,2]
[353074699,1739543445529,-512.37,0.00013945,2]
[353074700,1739543445538,-500.0,0.00013945,2]
[353074701,1739543445547,-500.0,0.00013945,2]
[353074702,1739543445556,-1357.74,0.00013945,2]
[353074703,1739543445566,-500.0,0.00013945,2]
[353074704,1739543445576,-469.30851755,0.00013945,2]
[353074705,1739543445585,-500.0,0.00013945,2]
[353074706,1739543445594,-500.0,0.00013945,2]
[353074707,1739543445604,-3266.46,0.00013945,2]
[353074708,1739543445613,-615.53,0.00013945,2]
[353074709,1739543445623,-932.38,0.00013945,2]
[353074710,1739543445633,-398.76415066,0.00013945,2]
[353074711,1739543445642,-500.0,0.00013945,2]
[353074712,1739543445651,-500.0,0.00013945,2]
[353074713,1739543445661,-1818.71,0.00013945,2]
[353074714,1739543445670,-500.0,0.00013945,2]
[353074715,1739543445680,-3629.11,0.00013945,2]
[353074716,1739543445689,-1427.44,0.00013945,2]
[353074717,1739543445698,-8073.84,0.00013945,2]
[353074718,1739543445710,-907.96,0.00013945,2]
[353074719,1739543445721,-1744.01,0.00013945,2]
[353074720,1739543445807,-529.59,0.00013945,2]
[353074721,1739543445825,-500.0,0.00013945,2]
[353074722,1739543445835,-3935.74,0.00013945,2]
[353074723,1739543445845,-3028.47,0.00013945,2]
[353074724,1739543445854,-13546.8,0.00013945,2]
[353074725,1739543445865,-500.0,0.00013945,2]
[353074727,1739543445876,-3573.63,0.00013945,2]
[353074729,1739543445886,-1282.31,0.00013945,2]
[353074730,1739543445896,-166.736266,0.00013945,2]
[353074732,1739543445906,-166.736266,0.00013945,2]
[353074734,1739543445916,-3000.0,0.00013979,2]
[353074735,1739543445927,-167.33989873,0.00013979,2]
[353074737,1739543445937,-167.33989873,0.00013979,2]
[353074739,1739543445951,-167.33989873,0.00013979,2]
[353074741,1739543445960,-167.33989873,0.00013979,2]
[353074743,1739543445969,-167.33989873,0.00013979,2]
[353074746,1739543445979,-167.33989873,0.00013979,2]
[353074747,1739543445988,-167.33989873,0.00013979,2]
[353074749,1739543445996,-167.33989873,0.00013979,2]
[353074751,1739543446005,-167.33989873,0.00013979,2]
[353074752,1739543446016,-167.33989873,0.00013979,2]
[353074754,1739543446025,-167.33989873,0.00013979,2]
[353074755,1739543446033,-167.33989873,0.00013979,2]
[353074757,1739543446043,-167.33989873,0.00013979,2]
[353074759,1739543446052,-167.33989873,0.00013979,2]
[353074762,1739543446061,-167.33989873,0.00013979,2]
[353074763,1739543446071,-167.33989873,0.00013979,2]
[353074765,1739543446079,-167.33989873,0.00013979,2]
[353074767,1739543446092,-167.33989873,0.00013979,2]
[353074769,1739543446101,-167.33989873,0.00013979,2]
[353074771,1739543446110,-167.33,0.00013979,2]
[353074773,1739543446119,-10067.83113475,0.00013985,2]
[353074774,1739543446128,-151.0,0.00014,2]
[353074775,1739543446137,-151.0,0.00014,2]
[353074776,1739543446146,-151.0,0.00014,2]
[353074778,1739543446156,-151.0,0.00014,2]
[353074780,1739543446166,-151.0,0.00014,2]
[353074781,1739543446175,-151.0,0.00014,2]
[353074783,1739543446185,-151.0,0.00014,2]
[353074784,1739543446194,-151.0,0.00014,2]
[353074785,1739543446203,-151.0,0.00014027,2]
[353074786,1739543446212,-151.0,0.00014027,2]
[353074787,1739543446222,-500.0,0.00014027,2]
[353074788,1739543446231,-500.0,0.00014027,2]
[353074789,1739543446240,-740.19,0.00014027,2]
[353074790,1739543446249,-500.0,0.00014027,2]
[353074792,1739543446258,-690.32,0.00014027,2]
[353074793,1739543446268,-621.95,0.00014027,2]
[353074794,1739543446277,-500.0,0.00014027,2]
[353074795,1739543446286,-863.05,0.00014027,2]
[353074796,1739543446295,-1041.31,0.00014027,2]
[353074797,1739543446305,-409.64694853,0.00014027,2]
[353074798,1739543446317,-500.0,0.00014027,2]
[353074799,1739543446326,-500.0,0.00014027,2]
[353074800,1739543446335,-614.0,0.00014027,2]
[353074801,1739543446344,-476.2443216,0.00014027,2]
[353074804,1739543446469,-381.56998245,0.00014027,2]
[353074805,1739543446481,-728.30569595,0.00014027,2]
[353074806,1739543446491,-500.0,0.00014027,2]
[353074807,1739543446500,-1723.46,0.00014027,2]
[353074808,1739543446509,-352.05,0.00014027,2]
[353074809,1739543446519,-868.79,0.00014027,2]
[353074810,1739543446528,-500.0,0.00014027,2]
[353074811,1739543446537,-1433.64,0.00014027,2]
[353074812,1739543446546,-526.74,0.00014027,2]
[353074813,1739543446556,-500.0,0.00014027,2]
[353074814,1739543446565,-1615.06,0.00014027,2]
[353074815,1739543446574,-615.46,0.00014027,2]
[353074816,1739543446583,-500.0,0.00014027,2]
[353074817,1739543446593,-500.0,0.00014027,2]
[353074818,1739543446602,-1337.15,0.00014027,2]
[353074819,1739543446611,-500.0,0.00014027,2]
[353074820,1739543446620,-500.0,0.00014027,2]
[353074821,1739543446630,-500.0,0.00014027,2]
[353074822,1739543446639,-730.94560265,0.00014027,2]
[353074823,1739543446651,-27.48439735,0.00014027,2]
[353074824,1739543446660,-3967.03,0.00014027,2]
[353074825,1739543446669,-2221.02,0.00014027,2]
[353074826,1739543446678,-3000.91794286,0.00014027,2]
[353074827,1739543446693,-670.89738549,0.00014027,2]
[353074828,1739543446708,-4254.07467165,0.00014027,2]
[353074829,1739543446717,-500.0,0.00014027,2]
[353074830,1739543446727,-291.70466289,0.00014027,2]
[353074831,1739543446736,-635.02066546,0.00014027,2]
[353074832,1739543446749,-83.88933454,0.00014027,2]
[353074833,1739543446758,-1211.07,0.00014027,2]
[353074834,1739543446769,-500.0,0.00014027,2]
[353074835,1739543446780,-741.49,0.00014027,2]
[353074836,1739543446790,-500.0,0.00014027,2]
[353074837,1739543446799,-5210.48,0.00014027,2]
[353074838,1739543446809,-672.75,0.00014027,2]
[353074839,1739543446818,-500.0,0.00014027,2]
[353074840,1739543446828,-18062.97,0.00014027,2]
[353074841,1739543446837,-1719.82,0.00014027,2]
[353074842,1739543446846,-3867.58,0.00014027,2]
[353074843,1739543446856,-1273.6,0.00014027,2]
[353074844,1739543446866,-2073.55,0.00014027,2]
[353074845,1739543446875,-2121.62,0.00014027,2]
[353074846,1739543446885,-155.44690647,0.00014027,2]
[353074847,1739543446894,-722.6,0.00014027,2]
[353074848,1739543446903,-1761.8,0.00014027,2]
[353074849,1739543446913,-500.0,0.00014027,2]
[353074850,1739543446923,-500.0,0.00014027,2]
[353074851,1739543446933,-500.0,0.00014027,2]
[353074852,1739543446942,-500.0,0.00014027,2]
[353074853,1739543446953,-41321.88,0.00014027,2]
[353074854,1739543446963,-512.23,0.00014027,2]
[353074855,1739543446973,-1418.28,0.00014027,2]
[353074856,1739543446983,-2485.63,0.00014027,2]
[353074857,1739543446993,-2170.49,0.00014027,2]
[353074858,1739543447002,-1522.54,0.00014027,2]
[353074859,1739543447012,-512.37,0.00014027,2]
[353074860,1739543447023,-500.0,0.00014027,2]
[353074861,1739543447033,-500.0,0.00014027,2]
[353074862,1739543447042,-1357.74,0.00014027,2]
[353074863,1739543447052,-500.0,0.00014027,2]
[353074864,1739543447061,-500.0,0.00014027,2]
[353074865,1739543447071,-500.0,0.00014027,2]
[353074866,1739543447082,-3266.46,0.00014027,2]
[353074867,1739543447092,-615.53,0.00014027,2]
[353074868,1739543447101,-932.38,0.00014027,2]
[353074869,1739543447110,-500.0,0.00014027,2]
[353074870,1739543447119,-500.0,0.00014027,2]
[353074871,1739543447129,-1818.71,0.00014027,2]
[353074872,1739543447138,-500.0,0.00014027,2]
[353074873,1739543447147,-3629.11,0.00014027,2]
[353074874,1739543447157,-1427.44,0.00014027,2]
[353074875,1739543447166,-8073.84,0.00014027,2]
[353074876,1739543447175,-907.96,0.00014027,2]
[353074877,1739543447184,-1744.01,0.00014027,2]
[353074878,1739543447194,-529.59,0.00014027,2]
[353074879,1739543447203,-500.0,0.00014027,2]
[353074880,1739543447213,-3935.74,0.00014027,2]
[353074881,1739543447222,-3028.47,0.00014027,2]
[353074882,1739543447231,-13546.8,0.00014027,2]
[353074883,1739543447240,-500.0,0.00014027,2]
[353074884,1739543447250,-3573.63,0.00014027,2]
[353074885,1739543447259,-1282.31,0.00014027,2]
[353074886,1739543447270,-2603.56242898,0.00014041,2]
[353074887,1739543447279,-151.0,0.00014053,2]
[353074888,1739543447288,-500.0,0.00014073,2]
[353074889,1739543447298,-500.0,0.00014073,2]
[353074890,1739543447308,-1331.0,0.00014078,2]
[353074891,1739543447317,-24526.03860847,0.00014079,5]
[353074892,1739543447327,-3333.58748207,0.00014079,5]
[353074893,1739543447336,-16619.03959298,0.00014079,5]
[353074894,1739543447350,-904.98124392,0.00014079,5]
[353074895,1739543447361,-451.138672,0.00014079,5]
[353074896,1739543447374,-1078.107955,0.00014079,5]
[353074897,1739543447386,-8257.91254855,0.00014079,5]
[353074898,1739543447752,-500.0,0.00013698,2]
[353074899,1739543447762,-592.51,0.00013945,2]
[353074900,1739543447774,-592.51,0.00014027,2]
[353074901,1739543447786,-12933.98560113,0.00014079,5]
[353074902,1739543447867,-7699.298703,0.00014079,5]
[353074903,1739543448073,-500.0,0.00013698,2]
[353074904,1739543448083,-234.12,0.0001378,2]
[353074905,1739543448092,-396.0,0.00013886,2]
[353074906,1739543448102,-9020.34438921,0.00014079,5]
[353074907,1739543448115,-1063.79863551,0.00014079,5]
[353074908,1739543448137,-264.0253292,0.00014079,5]
[353074909,1739543448150,-517.18867557,0.00014079,5]
[353074910,1739543448162,-500.01,0.00014079,5]
[353074911,1739543448355,-503.50980569,0.00013698,2]
[353074912,1739543448367,-3145.05859363,0.00014079,5]
[353074913,1739543875482,152.87,0.000172,31]
[353074914,1739543875530,152.87,0.000172,31]
[353074915,1739543875568,152.87,0.000172,31]
[353074916,1739543875620,152.87,0.000172,31]
[353074917,1739543875672,152.87,0.000172,31]
[353074918,1739543875740,152.87,0.000172,31]
[353074919,1739543876158,152.87,0.000172,31]
[353074945,1739544478101,152.94,0.000172,31]
[353074946,1739544478160,152.94,0.000172,31]
[353074947,1739544478216,152.94,0.000172,31]
[353074948,1739544478281,152.94,0.000172,31]
[353074949,1739544478336,152.94,0.000172,31]
[353074950,1739544478389,152.94,0.000172,31]
[353074951,1739544478452,152.94,0.000172,31]
[353074952,1739544479873,10000.12017135,0.00018,30]
[353074981,1739544632849,-160.430683,0.00010685,2]
[353074983,1739544632859,-818.8,0.00010959,2]
[353074985,1739544632868,-215.9693169,0.00012259,2]
[353074990,1739544632908,-7222.72821588,0.00012259,2]
[353074991,1739544632918,-300.0,0.00012493,2]
[353074993,1739544632927,-24900.0,0.00012494,2]
[353074995,1739544632937,-535.7024283,0.0001276,2]
[353074997,1739544632947,-900.0,0.00013068,2]
[353074998,1739544632956,-154.666516,0.00013078,2]
[353074999,1739544632966,-306.0,0.00013078,2]
[353075000,1739544632978,-306.0,0.00013078,2]
[353075001,1739544632988,-431.8462186,0.00013078,2]
[353075002,1739544632999,-154.666516,0.000131,2]
[353075003,1739544633009,-670.30962963,0.00013598,2]
[353075004,1739544633019,-3000.0,0.00013599,2]
[353075005,1739544633030,-151.0,0.000136,2]
[353075006,1739544633041,-151.0,0.000136,2]
[353075007,1739544633051,-380.67978407,0.00013697,2]
[353075008,1739544633061,-500.0,0.00013697,2]
[353075009,1739544633071,-500.0,0.00013697,2]
[353075010,1739544633086,-217.44993648,0.00013697,2]
[353075011,1739544633096,-500.0,0.00013697,2]
[353075012,1739544633105,-228.94070607,0.00013697,2]
[353075013,1739544633116,-500.0,0.00013697,2]
[353075014,1739544633127,-500.0,0.00013697,2]
[353075015,1739544633137,-500.0,0.00013697,2]
[353075016,1739544633147,-647.86194943,0.00013697,2]
[353075017,1739544633156,-500.0,0.00013697,2]
[353075018,1739544633313,-500.0,0.00013697,2]
[353075019,1739544633324,-500.0,0.00013698,2]
[353075020,1739544633334,-500.0,0.00013698,2]
[353075021,1739544633344,-577.03945351,0.00013698,2]